[Event "Live Chess"]
[Site "Chess.com"]
[Date "2024.06.02"]
[Round "-"]
[White "Vladyslav2008"]
[Black "grillage"]
[Result "1-0"]
[WhiteElo "2263"]
[BlackElo "1864"]
[TimeControl "300"]
[EndTime "2:12:07 PDT"]
[Termination "Vladyslav2008 won by resignation"]

1. e4 {[%clk 0:04:58.4]} 1... d5 {[%clk 0:04:58.5]} 2. exd5 {[%clk 0:04:57.2]}
2... Qxd5 {[%clk 0:04:57.5]} 3. Nc3 {[%clk 0:04:55.1]} 3... Qd8 {[%clk 0:04:56]}
4. Nf3 {[%clk 0:04:53.9]} 4... Nf6 {[%clk 0:04:55.1]} 5. d4 {[%clk 0:04:52.8]}
5... Bg4 {[%clk 0:04:53.8]} 6. Bc4 {[%clk 0:04:51.5]} 6... a6 {[%clk 0:04:51.8]}
7. Bxf7+ {[%clk 0:04:49.1]} 7... Kxf7 {[%clk 0:04:33.1]} 8. Ne5+ {[%clk
0:04:48]} 8... Kg8 {[%clk 0:04:30.2]} 9. Nxg4 {[%clk 0:04:47.1]} 9... Nxg4
{[%clk 0:04:25.5]} 10. Qxg4 {[%clk 0:04:47]} 10... h6 {[%clk 0:04:23.5]} 11. O-O
{[%clk 0:04:37.4]} 11... Nd7 {[%clk 0:04:12]} 12. Bf4 {[%clk 0:04:26.8]} 12...
Nf6 {[%clk 0:04:09.4]} 13. Qe6+ {[%clk 0:04:25.4]} 13... Kh7 {[%clk 0:04:06.6]}
14. d5 {[%clk 0:04:23.2]} 14... c6 {[%clk 0:03:58]} 15. dxc6 {[%clk 0:04:20.7]}
15... bxc6 {[%clk 0:03:54.3]} 16. Rad1 {[%clk 0:04:14.5]} 16... Qc8 {[%clk
0:03:53.3]} 17. Qc4 {[%clk 0:04:11.4]} 17... g6 {[%clk 0:03:42.9]} 18. Rfe1
{[%clk 0:04:01.6]} 18... Ra7 {[%clk 0:03:28.8]} 19. Qf7+ {[%clk 0:03:32.3]}
19... Bg7 {[%clk 0:03:20.8]} 20. Rxe7 {[%clk 0:03:23.4]} 20... Rxe7 {[%clk
0:03:12.2]} 21. Qxe7 {[%clk 0:03:23.3]} 21... Re8 {[%clk 0:03:09.5]} 22. Qa7
{[%clk 0:03:21.8]} 22... Qe6 {[%clk 0:03:01.9]} 23. h3 {[%clk 0:03:16]} 23...
Nd5 {[%clk 0:02:58.2]} 24. Nxd5 {[%clk 0:03:12.8]} 24... cxd5 {[%clk 0:02:57.4]}
25. b3 {[%clk 0:03:03.8]} 25... Re7 {[%clk 0:02:55.8]} 26. Qb8 {[%clk
0:02:58.5]} 26... Qf5 {[%clk 0:02:47]} 27. Rc1 {[%clk 0:02:36.9]} 27... Rf7
{[%clk 0:02:40.9]} 28. Bg3 {[%clk 0:02:33.4]} 28... Re7 {[%clk 0:02:28.9]} 29.
Qd6 {[%clk 0:02:29.7]} 29... Qe4 {[%clk 0:02:22.8]} 30. c4 {[%clk 0:02:21.5]}
30... dxc4 {[%clk 0:02:18.7]} 31. Rxc4 {[%clk 0:02:19.4]} 31... Re6 {[%clk
0:02:14.9]} 32. Rxe4 {[%clk 0:02:17.2]} 32... Rxd6 {[%clk 0:02:14.2]} 33. Bxd6
{[%clk 0:02:17.1]} 1-0

[Event "Live Chess"]
[Site "Chess.com"]
[Date "2024.06.02"]
[Round "-"]
[White "Ferrarifan27"]
[Black "MagnersCarlsberg2870"]
[Result "1-0"]
[WhiteElo "2135"]
[BlackElo "1814"]
[TimeControl "300"]
[EndTime "2:12:17 PDT"]
[Termination "Ferrarifan27 won by resignation"]

1. e4 {[%clk 0:04:57.6]} 1... d6 {[%clk 0:04:57.9]} 2. d4 {[%clk 0:04:56.1]}
2... Nf6 {[%clk 0:04:56.7]} 3. Nc3 {[%clk 0:04:54.3]} 3... Nbd7 {[%clk
0:04:55.6]} 4. f4 {[%clk 0:04:52.8]} 4... e5 {[%clk 0:04:53.7]} 5. dxe5 {[%clk
0:04:51.6]} 5... dxe5 {[%clk 0:04:52]} 6. f5 {[%clk 0:04:47.5]} 6... c6 {[%clk
0:04:49.3]} 7. Bc4 {[%clk 0:04:46.7]} 7... Bb4 {[%clk 0:04:47.6]} 8. Bg5 {[%clk
0:04:35.6]} 8... Qb6 {[%clk 0:04:42.8]} 9. Qe2 {[%clk 0:04:24.5]} 9... h6 {[%clk
0:04:37.9]} 10. Be3 {[%clk 0:04:20.9]} 10... Bc5 {[%clk 0:04:34]} 11. Bxc5
{[%clk 0:04:16.7]} 11... Qxc5 {[%clk 0:04:31]} 12. Bd3 {[%clk 0:04:15.5]} 12...
h5 {[%clk 0:04:19.6]} 13. Nf3 {[%clk 0:04:13.4]} 13... Ng4 {[%clk 0:04:17.8]}
14. h3 {[%clk 0:04:06.8]} 14... Ngf6 {[%clk 0:04:10.8]} 15. O-O-O {[%clk
0:04:03.1]} 15... b5 {[%clk 0:04:09.1]} 16. Rhe1 {[%clk 0:03:57.5]} 16... Nb6
{[%clk 0:04:07.6]} 17. Qe3 {[%clk 0:03:55.5]} 17... Qb4 {[%clk 0:04:01.8]} 18.
Nxe5 {[%clk 0:03:43.7]} 18... Bd7 {[%clk 0:03:47.6]} 19. Nxd7 {[%clk 0:03:35.6]}
19... Nfxd7 {[%clk 0:03:45.3]} 20. e5 {[%clk 0:03:33.1]} 20... Na4 {[%clk
0:03:43.8]} 21. Nxa4 {[%clk 0:03:31.5]} 21... bxa4 {[%clk 0:03:42.1]} 22. e6
{[%clk 0:03:29.9]} 22... Nb6 {[%clk 0:03:32.2]} 23. exf7+ {[%clk 0:03:28.5]}
23... Kxf7 {[%clk 0:03:26.3]} 24. Qe6+ {[%clk 0:03:25.4]} 24... Kf8 {[%clk
0:03:20.3]} 25. f6 {[%clk 0:03:13.3]} 25... Nd5 {[%clk 0:03:13]} 26. fxg7+
{[%clk 0:03:09.6]} 26... Kxg7 {[%clk 0:03:11.7]} 27. Qxc6 {[%clk 0:03:02.9]}
27... Qf4+ {[%clk 0:03:05.1]} 28. Kb1 {[%clk 0:03:00.5]} 28... Nf6 {[%clk
0:02:51.8]} 29. Re7+ {[%clk 0:02:56.2]} 29... Kh6 {[%clk 0:02:48.3]} 30. Rf1
{[%clk 0:02:52]} 1-0

[Event "Live Chess"]
[Site "Chess.com"]
[Date "2024.06.02"]
[Round "-"]
[White "Tushinskiy"]
[Black "KeithArkell"]
[Result "0-1"]
[WhiteElo "2281"]
[BlackElo "2414"]
[TimeControl "300"]
[EndTime "2:12:29 PDT"]
[Termination "KeithArkell won by resignation"]

1. d4 {[%clk 0:04:55.2]} 1... e6 {[%clk 0:04:57]} 2. c3 {[%clk 0:04:55.1]} 2...
Nf6 {[%clk 0:04:55.8]} 3. Nf3 {[%clk 0:04:55]} 3... b6 {[%clk 0:04:55.1]} 4. Bf4
{[%clk 0:04:52.8]} 4... Bb7 {[%clk 0:04:54]} 5. Bg3 {[%clk 0:04:52.7]} 5... Be7
{[%clk 0:04:52.9]} 6. Nbd2 {[%clk 0:04:50.3]} 6... Ne4 {[%clk 0:04:51.7]} 7. e3
{[%clk 0:04:46.1]} 7... d6 {[%clk 0:04:50]} 8. Bd3 {[%clk 0:04:44]} 8... Nxg3
{[%clk 0:04:49.1]} 9. hxg3 {[%clk 0:04:43.9]} 9... Nd7 {[%clk 0:04:48.6]} 10.
Qe2 {[%clk 0:04:40.5]} 10... Nf6 {[%clk 0:04:47.8]} 11. e4 {[%clk 0:04:35.5]}
11... h6 {[%clk 0:04:46.1]} 12. O-O-O {[%clk 0:04:29.4]} 12... Qd7 {[%clk
0:04:36.8]} 13. e5 {[%clk 0:04:27]} 13... Nd5 {[%clk 0:04:35.9]} 14. Ne4 {[%clk
0:04:24.6]} 14... O-O-O {[%clk 0:04:35]} 15. Bb5 {[%clk 0:04:20]} 15... Bc6
{[%clk 0:04:33]} 16. Ba6+ {[%clk 0:04:18.2]} 16... Bb7 {[%clk 0:04:32.3]} 17. a3
{[%clk 0:04:06]} 17... Bxa6 {[%clk 0:04:30.5]} 18. Qxa6+ {[%clk 0:04:03.6]}
18... Kb8 {[%clk 0:04:29.9]} 19. c4 {[%clk 0:03:59.5]} 19... Qc6 {[%clk
0:04:29.2]} 20. Kb1 {[%clk 0:03:57.1]} 20... Nb4 {[%clk 0:04:25.6]} 21. axb4
{[%clk 0:03:55.4]} 21... Qxe4+ {[%clk 0:04:24.7]} 22. Ka2 {[%clk 0:03:51.4]}
22... Qb7 {[%clk 0:04:23.8]} 23. Qxb7+ {[%clk 0:03:46.1]} 23... Kxb7 {[%clk
0:04:22.6]} 24. Kb3 {[%clk 0:03:45.6]} 24... a6 {[%clk 0:04:19.6]} 25. Kc3
{[%clk 0:03:41.1]} 25... h5 {[%clk 0:04:12.2]} 26. Nd2 {[%clk 0:03:39.1]} 26...
dxe5 {[%clk 0:04:10.7]} 27. dxe5 {[%clk 0:03:37.8]} 27... b5 {[%clk 0:04:05]}
28. c5 {[%clk 0:03:35.1]} 28... Rd5 {[%clk 0:04:03]} 29. Nf3 {[%clk 0:03:34]}
29... g6 {[%clk 0:03:59.7]} 30. Rxd5 {[%clk 0:03:32.3]} 30... exd5 {[%clk
0:03:59]} 31. Kd4 {[%clk 0:03:31.4]} 31... c6 {[%clk 0:03:57.8]} 32. Re1 {[%clk
0:03:27.8]} 32... h4 {[%clk 0:03:56.8]} 33. gxh4 {[%clk 0:03:26]} 33... Bxh4
{[%clk 0:03:53.4]} 34. Rh1 {[%clk 0:03:24.7]} 34... Bf6 {[%clk 0:03:52.7]} 35.
Rxh8 {[%clk 0:03:23.9]} 35... Bxh8 {[%clk 0:03:52.6]} 36. Ng5 {[%clk 0:03:23.1]}
36... f6 {[%clk 0:03:52.2]} 37. Nf7 {[%clk 0:03:17.7]} 37... fxe5+ {[%clk
0:03:51.1]} 38. Nxe5 {[%clk 0:03:17.6]} 38... g5 {[%clk 0:03:49.4]} 39. g3
{[%clk 0:03:15.7]} 39... g4 {[%clk 0:03:48.2]} 0-1

[Event "Live Chess"]
[Site "Chess.com"]
[Date "2024.06.02"]
[Round "-"]
[White "ZatixMajor"]
[Black "StoreySniper"]
[Result "0-1"]
[WhiteElo "2013"]
[BlackElo "2515"]
[TimeControl "300"]
[EndTime "2:12:30 PDT"]
[Termination "StoreySniper won by resignation"]

1. c4 {[%clk 0:04:55]} 1... g6 {[%clk 0:04:58.8]} 2. g3 {[%clk 0:04:54]} 2...
Bg7 {[%clk 0:04:57]} 3. Bg2 {[%clk 0:04:53.5]} 3... c5 {[%clk 0:04:55]} 4. Nc3
{[%clk 0:04:52.9]} 4... Nc6 {[%clk 0:04:51.7]} 5. a3 {[%clk 0:04:51.6]} 5... d6
{[%clk 0:04:47.8]} 6. b4 {[%clk 0:04:49.9]} 6... cxb4 {[%clk 0:04:43]} 7. axb4
{[%clk 0:04:48.9]} 7... Nxb4 {[%clk 0:04:38.7]} 8. Nf3 {[%clk 0:04:46.8]} 8...
Nc6 {[%clk 0:04:37.4]} 9. O-O {[%clk 0:04:44.6]} 9... Nf6 {[%clk 0:04:35.5]} 10.
d4 {[%clk 0:04:42.9]} 10... O-O {[%clk 0:04:33.2]} 11. e4 {[%clk 0:04:36]} 11...
e5 {[%clk 0:04:28.7]} 12. Ba3 {[%clk 0:04:28.6]} 12... Re8 {[%clk 0:04:21.8]}
13. Re1 {[%clk 0:04:18.3]} 13... Bg4 {[%clk 0:04:19.9]} 14. Nb5 {[%clk
0:04:15.7]} 14... Nxd4 {[%clk 0:04:10.6]} 15. Nxd6 {[%clk 0:04:13.3]} 15... Re6
{[%clk 0:03:52]} 16. Nxd4 {[%clk 0:03:58.8]} 16... Bxd1 {[%clk 0:03:48.6]} 17.
Nxe6 {[%clk 0:03:58]} 17... fxe6 {[%clk 0:03:47.4]} 18. Raxd1 {[%clk 0:03:57.5]}
18... Qa5 {[%clk 0:03:40.4]} 19. Ra1 {[%clk 0:03:40.9]} 19... Bf8 {[%clk
0:03:32.5]} 20. Bh3 {[%clk 0:03:22.6]} 20... Kg7 {[%clk 0:02:42.2]} 21. Nf5+
{[%clk 0:03:07.8]} 21... Kg8 {[%clk 0:02:33]} 22. Bxf8 {[%clk 0:03:03.5]} 22...
Qc3 {[%clk 0:02:25.6]} 23. Bg7 {[%clk 0:02:34.1]} 23... Nh5 {[%clk 0:02:18.3]}
24. Rac1 {[%clk 0:02:28.1]} 24... Qa5 {[%clk 0:02:15.5]} 25. Ra1 {[%clk
0:02:17]} 25... Qc7 {[%clk 0:02:06.9]} 26. Bxe5 {[%clk 0:02:01]} 26... Qxe5
{[%clk 0:01:58.7]} 27. Nh6+ {[%clk 0:02:00.4]} 27... Kg7 {[%clk 0:01:51.8]} 28.
Ng4 {[%clk 0:01:59.8]} 28... Qc5 {[%clk 0:01:47.9]} 29. Rab1 {[%clk 0:01:53.8]}
29... b6 {[%clk 0:01:40.3]} 30. Ne3 {[%clk 0:01:52.4]} 30... Re8 {[%clk
0:01:28.9]} 31. Red1 {[%clk 0:01:48.9]} 31... Nf6 {[%clk 0:01:26.6]} 32. Rb5
{[%clk 0:01:43.3]} 32... Qc7 {[%clk 0:01:22.4]} 33. e5 {[%clk 0:01:29.3]} 33...
Nd7 {[%clk 0:01:16.3]} 34. Ng4 {[%clk 0:01:16.8]} 34... h5 {[%clk 0:00:59.9]}
35. Nf6 {[%clk 0:01:08.5]} 35... Nxf6 {[%clk 0:00:58.4]} 36. exf6+ {[%clk
0:01:08.4]} 36... Kxf6 {[%clk 0:00:57.1]} 37. Rb4 {[%clk 0:01:02.5]} 37... a5
{[%clk 0:00:53.4]} 38. Rb5 {[%clk 0:00:58.3]} 38... a4 {[%clk 0:00:48.5]} 39.
Ra1 {[%clk 0:00:53.9]} 39... Ra8 {[%clk 0:00:43.9]} 40. Rb4 {[%clk 0:00:48.6]}
40... a3 {[%clk 0:00:42]} 41. Rb3 {[%clk 0:00:35.2]} 41... a2 {[%clk 0:00:39.5]}
42. Bf1 {[%clk 0:00:34.7]} 42... Qe5 {[%clk 0:00:36.6]} 43. Rbb1 {[%clk
0:00:24.7]} 43... axb1=Q {[%clk 0:00:31.9]} 44. Rxb1 {[%clk 0:00:23.8]} 44...
Ra1 {[%clk 0:00:29.2]} 0-1

[Event "Live Chess"]
[Site "Chess.com"]
[Date "2024.06.02"]
[Round "-"]
[White "matt1979"]
[Black "MaksymYurii"]
[Result "1-0"]
[WhiteElo "1407"]
[BlackElo "1000"]
[TimeControl "300"]
[EndTime "2:12:47 PDT"]
[Termination "matt1979 won by checkmate"]

1. f4 {[%clk 0:04:58.8]} 1... d5 {[%clk 0:04:57.5]} 2. e3 {[%clk 0:04:56.7]}
2... d4 {[%clk 0:04:54.6]} 3. e4 {[%clk 0:04:53.3]} 3... Nf6 {[%clk 0:04:47.9]}
4. d3 {[%clk 0:04:50.9]} 4... Bg4 {[%clk 0:04:45.8]} 5. Be2 {[%clk 0:04:45.9]}
5... Bxe2 {[%clk 0:04:37.1]} 6. Qxe2 {[%clk 0:04:44.7]} 6... Nc6 {[%clk
0:04:32.3]} 7. Nf3 {[%clk 0:04:43.3]} 7... e5 {[%clk 0:04:21.6]} 8. f5 {[%clk
0:04:37.9]} 8... Bb4+ {[%clk 0:04:18.3]} 9. c3 {[%clk 0:04:33.7]} 9... Ba5
{[%clk 0:04:15]} 10. O-O {[%clk 0:04:27.6]} 10... dxc3 {[%clk 0:04:13.8]} 11.
bxc3 {[%clk 0:04:24.7]} 11... O-O {[%clk 0:04:07.3]} 12. Bb2 {[%clk 0:04:13.9]}
12... Bb6+ {[%clk 0:03:50.7]} 13. Kh1 {[%clk 0:04:11.6]} 13... Ng4 {[%clk
0:03:46.3]} 14. Bc1 {[%clk 0:04:01.3]} 14... Qf6 {[%clk 0:03:33.9]} 15. h3
{[%clk 0:03:58.7]} 15... Nh6 {[%clk 0:03:26.1]} 16. Bb2 {[%clk 0:03:47.5]} 16...
Rad8 {[%clk 0:03:16.5]} 17. Na3 {[%clk 0:03:42.1]} 17... a6 {[%clk 0:02:59.9]}
18. Nc4 {[%clk 0:03:40.8]} 18... Ba7 {[%clk 0:02:57.6]} 19. Rad1 {[%clk
0:03:26.2]} 19... b5 {[%clk 0:02:52.2]} 20. Ncd2 {[%clk 0:03:18.6]} 20... b4
{[%clk 0:02:41.9]} 21. c4 {[%clk 0:03:13.3]} 21... g6 {[%clk 0:02:11.9]} 22.
fxg6 {[%clk 0:03:09]} 22... fxg6 {[%clk 0:02:06.6]} 23. Nxe5 {[%clk 0:03:03.8]}
23... Qd6 {[%clk 0:01:20.7]} 24. Nxc6 {[%clk 0:02:57.1]} 24... Qxc6 {[%clk
0:01:14.1]} 25. Rxf8+ {[%clk 0:02:47.7]} 25... Rxf8 {[%clk 0:01:11.6]} 26. Rf1
{[%clk 0:02:40.8]} 26... Qc5 {[%clk 0:01:09.3]} 27. Rxf8+ {[%clk 0:02:35.5]}
27... Kxf8 {[%clk 0:01:06.3]} 28. Qf3+ {[%clk 0:02:32.8]} 28... Kg8 {[%clk
0:01:03.8]} 29. Qf1 {[%clk 0:02:20.7]} 29... Qe3 {[%clk 0:00:29.1]} 30. Nf3
{[%clk 0:02:12]} 30... Ng4 {[%clk 0:00:18.1]} 31. hxg4 {[%clk 0:02:04]} 31...
Qh6+ {[%clk 0:00:16.6]} 32. Nh2 {[%clk 0:01:45.7]} 32... c5 {[%clk 0:00:13.5]}
33. Qf6 {[%clk 0:01:26.1]} 33... Qg7 {[%clk 0:00:08.4]} 34. Qxg7# {[%clk
0:01:24.6]} 1-0

[Event "Live Chess"]
[Site "Chess.com"]
[Date "2024.06.02"]
[Round "-"]
[White "Delacorta"]
[Black "CarmelJane"]
[Result "0-1"]
[WhiteElo "1524"]
[BlackElo "2057"]
[TimeControl "300"]
[EndTime "2:12:57 PDT"]
[Termination "CarmelJane won by resignation"]

1. d4 {[%clk 0:04:55.9]} 1... g6 {[%clk 0:04:59.2]} 2. Nf3 {[%clk 0:04:54.9]}
2... Bg7 {[%clk 0:04:59.1]} 3. e3 {[%clk 0:04:53.7]} 3... c5 {[%clk 0:04:53.2]}
4. c4 {[%clk 0:04:48.9]} 4... cxd4 {[%clk 0:04:52.3]} 5. exd4 {[%clk 0:04:47.9]}
5... d5 {[%clk 0:04:47.2]} 6. c5 {[%clk 0:04:42.9]} 6... Bg4 {[%clk 0:04:35.7]}
7. Be3 {[%clk 0:04:40.6]} 7... Nc6 {[%clk 0:04:32.1]} 8. a3 {[%clk 0:04:32.8]}
8... Bxf3 {[%clk 0:04:26.8]} 9. gxf3 {[%clk 0:04:29.6]} 9... e6 {[%clk
0:04:20.7]} 10. Bb5 {[%clk 0:04:26.8]} 10... Ne7 {[%clk 0:04:19]} 11. Qa4 {[%clk
0:04:15.2]} 11... a6 {[%clk 0:04:12]} 12. Bxc6+ {[%clk 0:04:13.2]} 12... Nxc6
{[%clk 0:04:11.9]} 13. Nd2 {[%clk 0:04:00.6]} 13... O-O {[%clk 0:04:01.2]} 14.
b4 {[%clk 0:03:52.5]} 14... Qf6 {[%clk 0:03:54.1]} 15. Ke2 {[%clk 0:03:44.7]}
15... Nxd4+ {[%clk 0:03:50.4]} 16. Bxd4 {[%clk 0:03:39]} 16... Qxd4 {[%clk
0:03:46.6]} 17. Qc2 {[%clk 0:03:27.3]} 17... Qe5+ {[%clk 0:03:31.1]} 18. Kd3
{[%clk 0:03:17]} 18... Qf5+ {[%clk 0:03:29.6]} 0-1

[Event "Live Chess"]
[Site "Chess.com"]
[Date "2024.06.02"]
[Round "-"]
[White "seasidecastle27"]
[Black "vincents82"]
[Result "1/2-1/2"]
[WhiteElo "1917"]
[BlackElo "2002"]
[TimeControl "300"]
[EndTime "2:12:58 PDT"]
[Termination "Game drawn by repetition"]

1. d4 {[%clk 0:04:57.6]} 1... d5 {[%clk 0:04:58.8]} 2. Nf3 {[%clk 0:04:56.9]}
2... Nf6 {[%clk 0:04:56.9]} 3. Bf4 {[%clk 0:04:56.1]} 3... c5 {[%clk 0:04:49.8]}
4. e3 {[%clk 0:04:54.9]} 4... Nc6 {[%clk 0:04:48.6]} 5. c3 {[%clk 0:04:50.8]}
5... Qb6 {[%clk 0:04:47.1]} 6. Qc1 {[%clk 0:04:35.5]} 6... Bf5 {[%clk
0:04:43.2]} 7. Nbd2 {[%clk 0:04:33.7]} 7... e6 {[%clk 0:04:42]} 8. Nh4 {[%clk
0:04:29.3]} 8... Bg6 {[%clk 0:04:40]} 9. Nxg6 {[%clk 0:04:27.6]} 9... hxg6
{[%clk 0:04:38.9]} 10. Bd3 {[%clk 0:04:26.4]} 10... Rc8 {[%clk 0:04:37.6]} 11.
Qb1 {[%clk 0:04:14.9]} 11... Nh5 {[%clk 0:04:35.6]} 12. O-O {[%clk 0:03:49]}
12... Nxf4 {[%clk 0:04:31.7]} 13. exf4 {[%clk 0:03:47.5]} 13... cxd4 {[%clk
0:04:30.3]} 14. cxd4 {[%clk 0:03:40.8]} 14... Qxd4 {[%clk 0:04:27.1]} 15. g3
{[%clk 0:03:31.7]} 15... Bc5 {[%clk 0:04:17.5]} 16. Nb3 {[%clk 0:03:26.9]} 16...
Qb4 {[%clk 0:04:14.4]} 17. Nxc5 {[%clk 0:03:20.6]} 17... Qxc5 {[%clk 0:04:13.3]}
18. Rc1 {[%clk 0:03:13.4]} 18... Qd6 {[%clk 0:04:11.4]} 19. b4 {[%clk
0:03:11.9]} 19... O-O {[%clk 0:04:09.2]} 20. b5 {[%clk 0:02:54.3]} 20... Nd4
{[%clk 0:04:07.4]} 21. Qb2 {[%clk 0:02:48.8]} 21... Nf5 {[%clk 0:04:04.1]} 22.
a4 {[%clk 0:02:38]} 22... b6 {[%clk 0:04:00.2]} 23. Rc3 {[%clk 0:02:27]} 23...
Rc5 {[%clk 0:03:56.4]} 24. Rxc5 {[%clk 0:02:22.5]} 24... bxc5 {[%clk 0:03:52.4]}
25. a5 {[%clk 0:02:20.9]} 25... c4 {[%clk 0:03:48.1]} 26. Bxf5 {[%clk
0:02:19.4]} 26... gxf5 {[%clk 0:03:47]} 27. b6 {[%clk 0:02:18.2]} 27... axb6
{[%clk 0:03:45.4]} 28. axb6 {[%clk 0:02:16.4]} 28... Rb8 {[%clk 0:03:44]} 29. b7
{[%clk 0:02:10.3]} 29... Qc7 {[%clk 0:03:30.1]} 30. Ra8 {[%clk 0:02:06.2]} 30...
c3 {[%clk 0:03:28.5]} 31. Rxb8+ {[%clk 0:01:38.6]} 31... Qxb8 {[%clk 0:03:22.4]}
32. Qxc3 {[%clk 0:01:35.4]} 32... Qxb7 {[%clk 0:03:20.8]} 33. h4 {[%clk
0:01:32.6]} 33... Qb1+ {[%clk 0:03:17.8]} 34. Kg2 {[%clk 0:01:30]} 34... Qe4+
{[%clk 0:03:16.3]} 35. Kh2 {[%clk 0:01:28.1]} 35... d4 {[%clk 0:03:13.2]} 36.
Qc8+ {[%clk 0:01:21]} 36... Kh7 {[%clk 0:03:12.2]} 37. Qd7 {[%clk 0:01:17.3]}
37... f6 {[%clk 0:02:51.2]} 38. Qe8 {[%clk 0:01:08.1]} 38... Qf3 {[%clk
0:02:49.4]} 39. Kg1 {[%clk 0:01:00.6]} 39... d3 {[%clk 0:02:44.4]} 40. h5 {[%clk
0:00:58.9]} 40... Qg4 {[%clk 0:02:35.2]} 41. Kg2 {[%clk 0:00:41.3]} 41... d2
{[%clk 0:02:30]} 42. f3 {[%clk 0:00:40.4]} 42... Qxf3+ {[%clk 0:02:14]} 43. Kxf3
{[%clk 0:00:39.3]} 43... d1=Q+ {[%clk 0:02:12.3]} 44. Kg2 {[%clk 0:00:38.5]}
44... Qc1 {[%clk 0:01:58.9]} 45. Qg6+ {[%clk 0:00:35]} 45... Kg8 {[%clk
0:01:58]} 46. Qe8+ {[%clk 0:00:34.2]} 46... Kh7 {[%clk 0:01:57.5]} 47. Qg6+
{[%clk 0:00:33.4]} 47... Kg8 {[%clk 0:01:56.3]} 48. Qe8+ {[%clk 0:00:32.7]}
48... Kh7 {[%clk 0:01:55.9]} 1/2-1/2

[Event "Live Chess"]
[Site "Chess.com"]
[Date "2024.06.02"]
[Round "-"]
[White "Duke_of_Bebington"]
[Black "peteopeteo"]
[Result "0-1"]
[WhiteElo "1642"]
[BlackElo "1547"]
[TimeControl "300"]
[EndTime "2:13:00 PDT"]
[Termination "peteopeteo won by resignation"]

1. e4 {[%clk 0:04:57.3]} 1... c6 {[%clk 0:04:59.4]} 2. d4 {[%clk 0:04:54.1]}
2... d5 {[%clk 0:04:59.3]} 3. e5 {[%clk 0:04:53]} 3... Bf5 {[%clk 0:04:57.6]} 4.
g4 {[%clk 0:04:52.3]} 4... Bg6 {[%clk 0:04:54.8]} 5. h4 {[%clk 0:04:51.5]} 5...
h5 {[%clk 0:04:52.9]} 6. e6 {[%clk 0:04:50.1]} 6... fxe6 {[%clk 0:04:44.7]} 7.
Bh3 {[%clk 0:04:09.9]} 7... hxg4 {[%clk 0:04:37.3]} 8. Bxg4 {[%clk 0:04:08.5]}
8... Bf5 {[%clk 0:04:36.7]} 9. Bg5 {[%clk 0:04:03.8]} 9... g6 {[%clk 0:04:23.2]}
10. Nd2 {[%clk 0:03:59.5]} 10... Nf6 {[%clk 0:04:22.2]} 11. f3 {[%clk
0:03:49.6]} 11... Bh6 {[%clk 0:04:15.3]} 12. Bxf6 {[%clk 0:03:38.5]} 12... exf6
{[%clk 0:04:15.2]} 13. Qe2 {[%clk 0:03:36.3]} 13... Qd6 {[%clk 0:03:51.4]} 14.
O-O-O {[%clk 0:03:32.3]} 14... Nd7 {[%clk 0:03:39.6]} 15. Kb1 {[%clk 0:03:30.9]}
15... O-O-O {[%clk 0:03:38.2]} 16. Ka1 {[%clk 0:03:21.5]} 16... e5 {[%clk
0:03:29.3]} 17. dxe5 {[%clk 0:03:17.7]} 17... Nxe5 {[%clk 0:03:12.9]} 18. Bxf5+
{[%clk 0:03:11.7]} 18... gxf5 {[%clk 0:03:12.8]} 19. Nh3 {[%clk 0:02:55.8]}
19... Rhg8 {[%clk 0:02:56.2]} 20. f4 {[%clk 0:02:22.6]} 20... Ng4 {[%clk
0:02:22.7]} 21. Qd3 {[%clk 0:02:02.8]} 21... Bxf4 {[%clk 0:02:04.3]} 22. Qxf5+
{[%clk 0:01:59.9]} 22... Kb8 {[%clk 0:01:15.5]} 23. Nxf4 {[%clk 0:01:28.7]}
23... Ne3 {[%clk 0:01:10.7]} 24. Qh3 {[%clk 0:01:11.7]} 24... Qxf4 {[%clk
0:01:01.2]} 25. Rde1 {[%clk 0:01:02.8]} 25... Nxc2+ {[%clk 0:01:00.1]} 0-1

[Event "Live Chess"]
[Site "Chess.com"]
[Date "2024.06.02"]
[Round "-"]
[White "nigelst"]
[Black "dmitro74"]
[Result "0-1"]
[WhiteElo "1724"]
[BlackElo "1723"]
[TimeControl "300"]
[EndTime "2:13:04 PDT"]
[Termination "dmitro74 won by resignation"]

1. e4 {[%clk 0:04:57.9]} 1... e6 {[%clk 0:04:59]} 2. d4 {[%clk 0:04:55.5]} 2...
d5 {[%clk 0:04:58.4]} 3. exd5 {[%clk 0:04:54.4]} 3... exd5 {[%clk 0:04:57.5]} 4.
Nf3 {[%clk 0:04:53.9]} 4... Nf6 {[%clk 0:04:57]} 5. Bd3 {[%clk 0:04:52.1]} 5...
Bd6 {[%clk 0:04:56.1]} 6. Qe2+ {[%clk 0:04:51.2]} 6... Be6 {[%clk 0:04:51.3]} 7.
Ng5 {[%clk 0:04:49.1]} 7... Qd7 {[%clk 0:04:42.7]} 8. Nxe6 {[%clk 0:04:42.5]}
8... Qxe6 {[%clk 0:04:38.9]} 9. Qxe6+ {[%clk 0:04:40.9]} 9... fxe6 {[%clk
0:04:36.5]} 10. O-O {[%clk 0:04:40.2]} 10... O-O {[%clk 0:04:33.7]} 11. Re1
{[%clk 0:04:39]} 11... Re8 {[%clk 0:04:31.6]} 12. c4 {[%clk 0:04:33.5]} 12...
Nbd7 {[%clk 0:04:21.6]} 13. c5 {[%clk 0:04:21.4]} 13... Bf8 {[%clk 0:04:20.3]}
14. Nc3 {[%clk 0:04:20.4]} 14... e5 {[%clk 0:04:15.4]} 15. dxe5 {[%clk
0:04:18.2]} 15... Nxe5 {[%clk 0:04:11.2]} 16. Bf1 {[%clk 0:04:14.9]} 16... Bxc5
{[%clk 0:04:08.2]} 17. Bg5 {[%clk 0:04:10.7]} 17... Neg4 {[%clk 0:03:42.8]} 18.
Bxf6 {[%clk 0:04:00]} 18... Bxf2+ {[%clk 0:03:39.6]} 19. Kh1 {[%clk 0:03:55.5]}
19... Bxe1 {[%clk 0:03:31.7]} 20. Bd4 {[%clk 0:03:47.3]} 20... b6 {[%clk
0:03:23.5]} 21. Be2 {[%clk 0:03:24]} 21... Bxc3 {[%clk 0:03:15.7]} 22. Bxc3
{[%clk 0:03:05]} 22... Rxe2 {[%clk 0:03:13.5]} 0-1

[Event "Live Chess"]
[Site "Chess.com"]
[Date "2024.06.02"]
[Round "-"]
[White "yarek"]
[Black "crais6"]
[Result "1-0"]
[WhiteElo "1743"]
[BlackElo "1604"]
[TimeControl "300"]
[EndTime "2:13:11 PDT"]
[Termination "yarek won by resignation"]

1. e4 {[%clk 0:04:57.3]} 1... c5 {[%clk 0:04:57.1]} 2. d4 {[%clk 0:04:56.1]}
2... cxd4 {[%clk 0:04:53]} 3. c3 {[%clk 0:04:55.7]} 3... d3 {[%clk 0:04:46.8]}
4. Bxd3 {[%clk 0:04:52.8]} 4... Nc6 {[%clk 0:04:45.4]} 5. Nf3 {[%clk 0:04:50.5]}
5... d6 {[%clk 0:04:43.4]} 6. h3 {[%clk 0:04:46.6]} 6... e5 {[%clk 0:04:36.6]}
7. O-O {[%clk 0:04:44.3]} 7... Be7 {[%clk 0:04:34.9]} 8. c4 {[%clk 0:04:42.6]}
8... Nf6 {[%clk 0:04:32.4]} 9. Nc3 {[%clk 0:04:41.5]} 9... O-O {[%clk
0:04:30.2]} 10. Nd5 {[%clk 0:04:40.9]} 10... Be6 {[%clk 0:04:26]} 11. a3 {[%clk
0:04:20]} 11... a5 {[%clk 0:04:01.9]} 12. Be3 {[%clk 0:04:11.2]} 12... Nd7
{[%clk 0:03:56.9]} 13. Rc1 {[%clk 0:04:02.2]} 13... f5 {[%clk 0:03:52.8]} 14.
exf5 {[%clk 0:03:52.4]} 14... Bxf5 {[%clk 0:03:48.4]} 15. Bxf5 {[%clk
0:03:38.6]} 15... Rxf5 {[%clk 0:03:45.1]} 16. Qd3 {[%clk 0:03:35.3]} 16... Qf8
{[%clk 0:03:27]} 17. Nc7 {[%clk 0:03:19.8]} 17... Rc8 {[%clk 0:03:22.6]} 18. Ne6
{[%clk 0:03:08.9]} 18... Qf7 {[%clk 0:03:03.2]} 19. Neg5 {[%clk 0:03:04.5]}
19... Qg6 {[%clk 0:02:50]} 20. Qd5+ {[%clk 0:02:52.6]} 20... Kh8 {[%clk
0:02:43.7]} 21. Nh4 {[%clk 0:02:31.3]} 21... Qh5 {[%clk 0:02:29.8]} 22. Nxf5
{[%clk 0:02:23.8]} 1-0